fUSD/lending_fUSD_20250214
["ID","MTS","AMOUNT","RATE_DAILY","PERIOD"]
[353115332,1739566244019,-150.0,0.00011781,2]
[353115333,1739566244031,-150.0,0.00011783,2]
[353115334,1739566244040,-150.0,0.0001184,2]
[353115335,1739566244050,-500.0,0.0001188,2]
[353115336,1739566244060,-1000.0,0.00011891,2]
[353115337,1739566244070,-250.0,0.00011891,2]
[353115338,1739566244079,-504.88,0.00011891,2]
[353115339,1739566244089,-336.06707169,0.000119,2]
[353115340,1739566244099,-150.0,0.00011922,2]
[353115341,1739566244109,-150.0,0.00012024,2]
[353115342,1739566244119,-150.0,0.00012047,2]
[353115343,1739566244130,-150.0,0.00012048,2]
[353115344,1739566244140,-2000.0,0.00012055,2]
[353115345,1739566244150,-1000.0,0.00012096,2]
[353115346,1739566244160,-1757.0,0.000121,5]
[353115347,1739566244170,-150.0,0.00012125,2]
[353115348,1739566244183,-150.0,0.0001213,2]
[353115349,1739566244198,-1453.96540155,0.00012137,2]
[353115350,1739566244208,-2691.01553205,0.00012137,2]
[353115351,1739566244219,-150.0,0.00012163,2]
[353115352,1739566244231,-150.0,0.00012207,2]
[353115353,1739566244240,-1070.18,0.00012237,2]
[353115354,1739566244250,-1000.0,0.00012241,2]
[353115355,1739566244259,-1000.0,0.00012262,2]
[353115356,1739566244271,-150.0,0.000123,2]
[353115357,1739566244281,-150.0,0.00012312,2]
[353115358,1739566244291,-1000.0,0.00012341,2]
[353115359,1739566244301,-150.0,0.00012393,2]
[353115360,1739566244311,-150.0,0.00012438,2]
[353115361,1739566244321,-204.35960509,0.00012452,2]
[353115362,1739566244332,-150.0,0.00012452,2]
[353115363,1739566244341,-1000.0,0.00012473,2]
[353115364,1739566244351,-150.0,0.00012473,2]
[353115365,1739566244363,-660.05227056,0.00012489,2]
[353115366,1739566244373,-197.95,0.000125,2]
[353115367,1739566244383,-150.0,0.00012504,2]
[353115368,1739566244393,-150.0,0.00012536,2]
[353115369,1739566244403,-150.0,0.00012584,2]
[353115370,1739566244414,-1453.96540155,0.00012585,2]
[353115371,1739566244423,-2691.01553205,0.00012585,2]
[353115372,1739566244434,-150.0,0.0001261,2]
[353115373,1739566244444,-182.31727663,0.00012623,2]
[353115374,1739566244454,-150.0,0.00012626,2]
[353115375,1739566244463,-167.57,0.0001264,2]
[353115376,1739566244473,-150.0,0.00012645,2]
[353115377,1739566244483,-150.0,0.00012648,2]
[353115378,1739566244492,-1000.0,0.0001265,2]
[353115379,1739566244504,-1000.0,0.00012671,2]
[353115380,1739566244514,-150.0,0.00012686,2]
[353115381,1739566244524,-150.0,0.00012687,2]
[353115382,1739566244534,-150.0,0.000127,2]
[353115383,1739566244544,-1000.0,0.00012739,2]
[353115384,1739566244553,-150.0,0.00012761,2]
[353115385,1739566244565,-300.0,0.00012773,2]
[353115386,1739566244575,-150.0,0.00012774,2]
[353115387,1739566244585,-1005.0,0.00012776,2]
[353115388,1739566244594,-1000.0,0.0001282,2]
[353115389,1739566244604,-150.0,0.00012834,2]
[353115390,1739566244614,-176.03,0.0001287,2]
[353115391,1739566244623,-999.99,0.00012893,2]
[353115392,1739566244633,-150.99,0.00012893,2]
[353115393,1739566244644,-1448.68,0.00012893,2]
[353115394,1739566244654,-299.99,0.00012893,2]
[353115395,1739566244664,-1115.69,0.00012893,2]
[353115396,1739566244674,-150.99,0.00012893,2]
[353115397,1739566244684,-19759.47,0.00012893,2]
[353115398,1739566244693,-11025.0,0.00012893,2]
[353115399,1739566244704,-176134.12797334,0.000129,2]
[353115400,1739566244713,-150.0,0.00012911,2]
[353115401,1739566244723,-150.0,0.00012937,2]
[353115402,1739566244734,-150.0,0.00012968,2]
[353115403,1739566244743,-150.0,0.00012987,2]
[353115404,1739566244753,-550.0,0.00013,2]
[353115405,1739566244763,-1453.96540155,0.00013032,2]
[353115406,1739566244773,-2691.01553205,0.00013032,2]
[353115407,1739566244783,-150.0,0.00013053,2]
[353115408,1739566244792,-150.0,0.00013129,2]
[353115409,1739566244802,-150.0,0.00013153,2]
[353115410,1739566244812,-150.0,0.0001318,2]
[353115411,1739566244822,-150.0,0.00013191,2]
[353115412,1739566244832,-150.0,0.00013227,2]
[353115413,1739566244842,-150.0,0.0001324,2]
[353115414,1739566244851,-377.09,0.00013246,2]
[353115415,1739566244861,-1000.0,0.00013249,2]
[353115416,1739566244871,-150.0,0.00013281,2]
[353115417,1739566244881,-150.0,0.00013323,2]
[353115418,1739566244891,-150.0,0.00013331,2]
[353115419,1739566244902,-176.03,0.00013347,2]
[353115420,1739566244911,-660.05227056,0.00013352,2]
[353115421,1739566244920,-1000.0,0.00013377,2]
[353115422,1739566244930,-254.73015411,0.00013421,2]
[353115423,1739566244940,-150.0,0.00013429,2]
[353115424,1739566244950,-150.0,0.00013434,2]
[353115425,1739566244959,-150.0,0.00013454,2]
[353115426,1739566244968,-1453.96540155,0.0001348,2]
[353115427,1739566244978,-150.0,0.00013495,2]
[353115428,1739566244988,-150.0,0.00013504,2]
[353115429,1739566244999,-1000.0,0.00013509,2]
[353115430,1739566245009,-150.0,0.00013522,2]
[353115431,1739566245018,-150.0,0.00013551,2]
[353115432,1739566245029,-300.0,0.00013564,2]
[353115433,1739566245039,-58392.55941091,0.0001358,2]
[353115434,1739566245049,-1000.0,0.00013601,2]
[353115435,1739566245058,-167.57,0.00013612,2]
[353115436,1739566245068,-150.0,0.0001362,2]
[353115437,1739566245077,-150.0,0.0001363,2]
[353115438,1739566245087,-150.0,0.00013638,2]
[353115439,1739566245097,-874.968359,0.00013698,2]
[353115440,1739566245106,-161.301757,0.00013698,2]
[353115441,1739566245115,-155.937293,0.00013698,2]
[353115442,1739566245124,-851.952662,0.00013698,2]
[353115443,1739566245133,-150.827338,0.00013698,2]
[353115444,1739566245143,-194.618637,0.00013698,2]
[353115445,1739566245151,-155.533794,0.00013698,2]
[353115446,1739566245161,-162.038582,0.00013698,2]
[353115447,1739566245170,-150.298909,0.00013698,2]
[353115448,1739566245182,-156.108989,0.00013698,2]
[353115449,1739566245195,-500.0,0.00013698,2]
[353115450,1739566245204,-500.0,0.00013698,2]
[353115451,1739566245213,-501.35106964,0.00013698,2]
[353115452,1739566245224,-500.0,0.00013698,2]
[353115453,1739566245235,-221.0456427,0.00013698,2]
[353115454,1739566245245,-500.0,0.00013698,2]
[353115455,1739566245254,-502.23520174,0.00013698,2]
[353115456,1739566245265,-500.0,0.00013698,2]
[353115457,1739566245274,-510.89973778,0.00013698,2]
[353115458,1739566245283,-201.90276561,0.00013698,2]
[353115459,1739566245293,-200.98675695,0.00013698,2]
[353115460,1739566245302,-500.0,0.00013698,2]
[353115461,1739566245312,-500.0,0.00013698,2]
[353115462,1739566245323,-500.0,0.00013698,2]
[353115463,1739566245333,-500.0,0.00013698,2]
[353115464,1739566245342,-500.0,0.00013698,2]
[353115465,1739566245351,-500.0,0.00013698,2]
[353115466,1739566245361,-271.86391101,0.00013698,2]
[353115467,1739566245370,-500.80335089,0.00013698,2]
[353115468,1739566245380,-500.0,0.00013698,2]
[353115469,1739566245389,-500.0,0.00013698,2]
[353115470,1739566245399,-500.0,0.00013698,2]
[353115471,1739566245409,-235.75800333,0.00013698,2]
[353115472,1739566245421,-500.0,0.00013698,2]
[353115473,1739566245432,-500.0,0.00013698,2]
[353115474,1739566245443,-500.0,0.00013698,2]
[353115475,1739566245453,-500.0,0.00013698,2]
[353115476,1739566245465,-500.53192226,0.00013698,2]
[353115477,1739566245474,-527.42616887,0.00013698,2]
[353115478,1739566245484,-553.7148991,0.00013698,2]
[353115479,1739566245495,-500.0,0.00013698,2]
[353115480,1739566245505,-561.33134651,0.00013698,2]
[353115481,1739566245515,-407.69639398,0.00013698,2]
[353115482,1739566245526,-500.0,0.00013698,2]
[353115483,1739566245536,-500.0,0.00013698,2]
[353115484,1739566245546,-500.0,0.00013698,2]
[353115485,1739566245557,-500.0,0.00013698,2]
[353115486,1739566245566,-500.0,0.00013698,2]
[353115487,1739566245577,-500.0,0.00013698,2]
[353115488,1739566245587,-188.30690757,0.00013698,2]
[353115489,1739566245597,-500.49388566,0.00013698,2]
[353115490,1739566245607,-500.0,0.00013698,2]
[353115491,1739566245618,-501.01091773,0.00013698,2]
[353115492,1739566245628,-500.0,0.00013698,2]
[353115493,1739566245638,-500.0,0.00013698,2]
[353115494,1739566245647,-500.0,0.00013698,2]
[353115495,1739566245657,-500.0,0.00013698,2]
[353115496,1739566245667,-588.28,0.00013698,2]
[353115497,1739566245677,-500.0,0.00013698,2]
[353115498,1739566245689,-500.0,0.00013698,2]
[353115499,1739566245698,-500.0,0.00013698,2]
[353115500,1739566245710,-500.0,0.00013698,2]
[353115501,1739566245720,-500.0,0.00013698,2]
[353115502,1739566245730,-500.0,0.00013698,2]
[353115503,1739566245739,-500.0,0.00013698,2]
[353115504,1739566245751,-500.0,0.00013698,2]
[353115505,1739566245760,-500.0,0.00013698,2]
[353115506,1739566245770,-536.18,0.00013698,2]
[353115507,1739566245781,-500.0,0.00013698,2]
[353115508,1739566245790,-504.37496418,0.00013698,2]
[353115509,1739566245800,-500.0,0.00013698,2]
[353115510,1739566245811,-500.0,0.00013698,2]
[353115511,1739566245821,-500.0,0.00013698,2]
[353115512,1739566245831,-500.0,0.00013698,2]
[353115513,1739566245840,-503.00518245,0.00013698,2]
[353115514,1739566245850,-457.05378857,0.00013698,2]
[353115515,1739566245860,-500.0,0.00013698,2]
[353115516,1739566245869,-500.0,0.00013698,2]
[353115517,1739566245878,-500.0,0.00013698,2]
[353115518,1739566245888,-503.69,0.00013698,2]
[353115519,1739566245897,-501.45399728,0.00013698,2]
[353115520,1739566245907,-500.0,0.00013698,2]
[353115521,1739566245916,-500.0,0.00013698,2]
[353115522,1739566245926,-500.0,0.00013698,2]
[353115523,1739566245935,-500.0,0.00013698,2]
[353115524,1739566245946,-500.0,0.00013698,2]
[353115525,1739566245955,-500.0,0.00013698,2]
[353115526,1739566245965,-500.0,0.00013698,2]
[353115527,1739566245975,-500.0,0.00013698,2]
[353115528,1739566245985,-500.0,0.00013698,2]
[353115529,1739566245997,-501.59261456,0.00013698,2]
[353115530,1739566246007,-500.0,0.00013698,2]
[353115531,1739566246018,-506.83267366,0.00013698,2]
[353115532,1739566246028,-500.0,0.00013698,2]
[353115533,1739566246039,-238.49354784,0.00013698,2]
[353115534,1739566246049,-500.0,0.00013698,2]
[353115535,1739566246059,-500.0,0.00013698,2]
[353115536,1739566246071,-500.0,0.00013698,2]
[353115537,1739566246081,-500.0,0.00013698,2]
[353115538,1739566246091,-500.0,0.00013698,2]
[353115539,1739566246102,-500.0,0.00013698,2]
[353115540,1739566246112,-500.0,0.00013698,2]
[353115541,1739566246123,-500.0,0.00013698,2]
[353115542,1739566246135,-500.0,0.00013698,2]
[353115543,1739566246145,-3902.37182813,0.00013698,2]
[353115544,1739566246154,-500.0,0.00013698,2]
[353115545,1739566246163,-506.51,0.00013698,2]
[353115546,1739566246172,-500.0,0.00013698,2]
[353115548,1739566246183,-500.0,0.00013698,2]
[353115549,1739566246195,-500.0,0.00013698,2]
[353115550,1739566246204,-500.0,0.00013698,2]
[353115551,1739566246213,-500.0,0.00013698,2]
[353115552,1739566246224,-500.0,0.00013698,2]
[353115553,1739566246233,-500.0,0.00013698,2]
[353115554,1739566246243,-500.0,0.00013698,2]
[353115555,1739566246252,-500.0,0.00013698,2]
[353115556,1739566246262,-500.0,0.00013698,2]
[353115557,1739566246272,-500.0,0.00013698,2]
[353115558,1739566246283,-501.79003758,0.00013698,2]
[353115559,1739566246293,-500.0,0.00013698,2]
[353115560,1739566246302,-500.0,0.00013698,2]
[353115561,1739566246313,-500.0,0.00013698,2]
[353115562,1739566246323,-500.0,0.00013698,2]
[353115563,1739566246334,-500.0,0.00013698,2]
[353115564,1739566246344,-558.31,0.00013698,2]
[353115565,1739566246356,-500.0,0.00013698,2]
[353115566,1739566246366,-500.0,0.00013698,2]
[353115567,1739566246377,-500.0,0.00013698,2]
[353115568,1739566246388,-500.0,0.00013698,2]
[353115569,1739566246397,-500.0,0.00013698,2]
[353115570,1739566246406,-519.27,0.00013698,2]
[353115571,1739566246415,-500.0,0.00013698,2]
[353115572,1739566246424,-500.0,0.00013698,2]
[353115573,1739566246433,-500.0,0.00013698,2]
[353115574,1739566246443,-500.0,0.00013698,2]
[353115575,1739566246452,-500.0,0.00013698,2]
[353115576,1739566246461,-500.0,0.00013698,2]
[353115577,1739566246471,-500.0,0.00013698,2]
[353115578,1739566246480,-500.0,0.00013698,2]
[353115579,1739566246490,-500.0,0.00013698,2]
[353115580,1739566246499,-500.0,0.00013698,2]
[353115581,1739566246736,-500.0,0.00013698,2]
[353115582,1739566246747,-500.0,0.00013698,2]
[353115583,1739566246757,-500.0,0.00013698,2]
[353115585,1739566246766,-397.98519691,0.00013698,2]
[353115587,1739566246778,-500.0,0.00013698,2]
[353115588,1739566246788,-500.0,0.00013698,2]
[353115589,1739566246797,-500.0,0.00013698,2]
[353115590,1739566246806,-500.0,0.00013698,2]
[353115591,1739566246816,-500.0,0.00013698,2]
[353115592,1739566246826,-500.0,0.00013698,2]
[353115593,1739566246835,-500.0,0.00013698,2]
[353115594,1739566246845,-500.0,0.00013698,2]
[353115595,1739566246855,-500.0,0.00013698,2]
[353115596,1739566246864,-500.0,0.00013698,2]
[353115597,1739566246874,-500.0,0.00013698,2]
[353115598,1739566246884,-500.0,0.00013698,2]
[353115599,1739566246893,-500.0,0.00013698,2]
[353115600,1739566246903,-500.0,0.00013698,2]
[353115601,1739566246913,-500.0,0.00013698,2]
[353115602,1739566246922,-500.0,0.00013698,2]
[353115603,1739566246932,-500.0,0.00013698,2]
[353115604,1739566246942,-500.0,0.00013698,2]
[353115605,1739566246952,-500.0,0.00013698,2]
[353115606,1739566246961,-500.0,0.00013698,2]
[353115607,1739566246971,-1200.0,0.00013698,2]
[353115608,1739566246980,-500.0,0.00013698,2]
[353115609,1739566246990,-512.74,0.00013698,2]
[353115610,1739566247000,-500.0,0.00013698,2]
[353115611,1739566247009,-500.0,0.00013698,2]
[353115612,1739566247019,-500.0,0.00013698,2]
[353115613,1739566247029,-553.19108828,0.00013698,2]
[353115614,1739566247038,-500.0,0.00013698,2]
[353115615,1739566247048,-757.95,0.00013698,2]
[353115616,1739566247057,-500.0,0.00013698,2]
[353115617,1739566247067,-500.0,0.00013698,2]
[353115618,1739566247076,-500.0,0.00013698,2]
[353115619,1739566247086,-505.49753605,0.00013698,2]
[353115620,1739566247095,-500.0,0.00013698,2]
[353115621,1739566247106,-500.0,0.00013698,2]
[353115622,1739566247115,-500.0,0.00013698,2]
[353115623,1739566247125,-500.0,0.00013698,2]
[353115624,1739566247135,-565.76,0.00013698,2]
[353115625,1739566247145,-500.0,0.00013698,2]
[353115626,1739566247155,-500.0,0.00013698,2]
[353115627,1739566247164,-500.0,0.00013698,2]
[353115628,1739566247175,-500.0,0.00013698,2]
[353115629,1739566247187,-500.0,0.00013698,2]
[353115630,1739566247197,-500.0,0.00013698,2]
[353115631,1739566247206,-500.0,0.00013698,2]
[353115632,1739566247216,-500.0,0.00013698,2]
[353115633,1739566247226,-569.67204108,0.00013698,2]
[353115634,1739566247237,-500.0,0.00013698,2]
[353115635,1739566247247,-500.0,0.00013698,2]
[353115636,1739566247256,-500.0,0.00013698,2]
[353115637,1739566247266,-1107.64,0.00013698,2]
[353115638,1739566247276,-500.0,0.00013698,2]
[353115639,1739566247285,-500.0,0.00013698,2]
[353115640,1739566247295,-187.84888,0.00013698,2]
[353115641,1739566247305,-500.0,0.00013698,2]
[353115642,1739566247315,-500.0,0.00013698,2]
[353115643,1739566247324,-500.0,0.00013698,2]
[353115644,1739566247335,-500.0,0.00013698,2]
[353115645,1739566247344,-500.0,0.00013698,2]
[353115646,1739566247353,-167.764912,0.00013698,2]
[353115647,1739566247363,-500.0,0.00013698,2]
[353115648,1739566247372,-500.0,0.00013698,2]
[353115649,1739566247381,-162.038583,0.00013698,2]
[353115650,1739566247391,-500.0,0.00013698,2]
[353115651,1739566247400,-500.0,0.00013698,2]
[353115652,1739566247410,-500.0,0.00013698,2]
[353115653,1739566247419,-500.0,0.00013698,2]
[353115654,1739566247428,-500.0,0.00013698,2]
[353115655,1739566247437,-156.10899,0.00013698,2]
[353115656,1739566247447,-500.0,0.00013698,2]
[353115657,1739566247456,-507.55066961,0.00013698,2]
[353115658,1739566247466,-501.76550144,0.00013698,2]
[353115659,1739566247476,-500.0,0.00013698,2]
[353115660,1739566247486,-500.0,0.00013698,2]
[353115661,1739566247496,-500.0,0.00013698,2]
[353115662,1739566247506,-500.0,0.00013698,2]
[353115663,1739566247516,-497.91706451,0.00013698,2]
[353115664,1739566247526,-500.0,0.00013698,2]
[353115665,1739566247535,-500.0,0.00013698,2]
[353115666,1739566247545,-500.0,0.00013698,2]
[353115667,1739566247555,-500.0,0.00013698,2]
[353115668,1739566247564,-536.38,0.00013698,2]
[353115669,1739566247574,-500.0,0.00013698,2]
[353115670,1739566247583,-500.0,0.00013698,2]
[353115671,1739566247593,-500.0,0.00013698,2]
[353115672,1739566247602,-500.0,0.00013698,2]
[353115673,1739566247612,-187.782864,0.00013698,2]
[353115674,1739566247621,-500.0,0.00013698,2]
[353115675,1739566247630,-617.81,0.00013698,2]
[353115676,1739566247640,-500.0,0.00013698,2]
[353115677,1739566247650,-587.28,0.00013698,2]
[353115678,1739566247659,-500.0,0.00013698,2]
[353115679,1739566247668,-557.96441779,0.00013698,2]
[353115680,1739566247678,-500.0,0.00013698,2]
[353115681,1739566247688,-166.401704,0.00013698,2]
[353115682,1739566247698,-750.15,0.00013698,2]
[353115683,1739566247708,-501.51407164,0.00013698,2]
[353115684,1739566247718,-500.0,0.00013698,2]
[353115685,1739566247728,-500.0,0.00013698,2]
[353115686,1739566247738,-500.0,0.00013698,2]
[353115687,1739566247748,-2392.8,0.00013698,2]
[353115688,1739566247759,-591.54,0.00013698,2]
[353115689,1739566247768,-500.0,0.00013698,2]
[353115690,1739566247779,-500.0,0.00013698,2]
[353115691,1739566247790,-500.0,0.00013698,2]
[353115692,1739566247800,-500.0,0.00013698,2]
[353115693,1739566247809,-583.03,0.00013698,2]
[353115694,1739566247819,-500.0,0.00013698,2]
[353115695,1739566247829,-1274.03,0.00013698,2]
[353115696,1739566247839,-503.14564734,0.00013698,2]
[353115697,1739566247848,-500.0,0.00013698,2]
[353115698,1739566247859,-157.836618,0.00013698,2]
[353115699,1739566247869,-500.0,0.00013698,2]
[353115700,1739566247878,-500.0,0.00013698,2]
[353115701,1739566247888,-500.0,0.00013698,2]
[353115702,1739566247897,-800.51,0.00013698,2]
[353115703,1739566247907,-500.0,0.00013698,2]
[353115704,1739566247917,-500.0,0.00013698,2]
[353115705,1739566247927,-1788.5,0.00013698,2]
[353115706,1739566247936,-500.0,0.00013698,2]
[353115707,1739566247945,-500.0,0.00013698,2]
[353115708,1739566247955,-500.0,0.00013698,2]
[353115709,1739566247964,-500.0,0.00013698,2]
[353115710,1739566247975,-500.0,0.00013698,2]
[353115711,1739566247984,-502.50806508,0.00013698,2]
[353115712,1739566247994,-500.0,0.00013698,2]
[353115713,1739566248003,-500.0,0.00013698,2]
[353115714,1739566248013,-500.0,0.00013698,2]
[353115715,1739566248023,-500.0,0.00013698,2]
[353115716,1739566248036,-1330.5,0.00013698,2]
[353115717,1739566248046,-500.0,0.00013698,2]
[353115718,1739566248057,-500.0,0.00013698,2]
[353115719,1739566248067,-500.0,0.00013698,2]
[353115720,1739566248078,-500.0,0.00013698,2]
[353115721,1739566248088,-500.0,0.00013698,2]
[353115722,1739566248098,-500.0,0.00013698,2]
[353115723,1739566248108,-500.0,0.00013698,2]
[353115724,1739566248119,-500.0,0.00013698,2]
[353115725,1739566248130,-740.69,0.00013698,2]
[353115726,1739566248140,-500.0,0.00013698,2]
[353115727,1739566248150,-421.2897835,0.00013698,2]
[353115728,1739566248159,-1124.22,0.00013698,2]
[353115729,1739566248169,-500.0,0.00013698,2]
[353115730,1739566248179,-500.0,0.00013698,2]
[353115731,1739566248191,-500.0,0.00013698,2]
[353115732,1739566248201,-500.0,0.00013698,2]
[353115733,1739566248211,-500.0,0.00013698,2]
[353115734,1739566248222,-500.0,0.00013698,2]
[353115735,1739566248232,-500.0,0.00013698,2]
[353115736,1739566248242,-500.0,0.00013698,2]
[353115737,1739566248252,-500.0,0.00013698,2]
[353115738,1739566248265,-500.0,0.00013698,2]
[353115739,1739566248275,-500.0,0.00013698,2]
[353115740,1739566248285,-569.68,0.00013698,2]
[353115741,1739566248297,-500.0,0.00013698,2]
[353115742,1739566248307,-500.0,0.00013698,2]
[353115743,1739566248316,-500.0,0.00013698,2]
[353115744,1739566248327,-500.0,0.00013698,2]
[353115745,1739566248337,-500.0,0.00013698,2]
[353115746,1739566248347,-500.0,0.00013698,2]
[353115747,1739566248359,-500.0,0.00013698,2]
[353115748,1739566248369,-783.23,0.00013698,2]
[353115749,1739566248380,-1019.53,0.00013698,2]
[353115750,1739566248391,-500.0,0.00013698,2]
[353115751,1739566248401,-1273.67,0.00013698,2]
[353115752,1739566248411,-500.0,0.00013698,2]
[353115753,1739566248420,-500.0,0.00013698,2]
[353115754,1739566248431,-500.0,0.00013698,2]
[353115755,1739566248441,-500.0,0.00013698,2]
[353115756,1739566248451,-500.0,0.00013698,2]
[353115757,1739566248462,-500.0,0.00013698,2]
[353115758,1739566248472,-500.0,0.00013698,2]
[353115759,1739566248482,-479.44175982,0.00013698,2]
[353115760,1739566248493,-719.23,0.00013698,2]
[353115761,1739566248502,-1340.4,0.00013698,2]
[353115762,1739566248512,-500.0,0.00013698,2]
[353115763,1739566248521,-500.0,0.00013698,2]
[353115764,1739566248532,-500.0,0.00013698,2]
[353115765,1739566248542,-500.0,0.00013698,2]
[353115766,1739566248552,-500.0,0.00013698,2]
[353115767,1739566248561,-500.0,0.00013698,2]
[353115768,1739566248570,-500.0,0.00013698,2]
[353115769,1739566248580,-253.40489674,0.00013698,2]
[353115770,1739566248590,-500.0,0.00013698,2]
[353115771,1739566248599,-912.68,0.00013698,2]
[353115772,1739566248609,-500.0,0.00013698,2]
[353115773,1739566248619,-500.0,0.00013698,2]
[353115774,1739566248628,-892.96,0.00013698,2]
[353115775,1739566248637,-500.0,0.00013698,2]
[353115776,1739566248647,-500.62622198,0.00013698,2]
[353115777,1739566248656,-500.0,0.00013698,2]
[353115778,1739566248666,-500.0,0.00013698,2]
[353115779,1739566248676,-500.0,0.00013698,2]
[353115780,1739566248686,-500.0,0.00013698,2]
[353115781,1739566248696,-500.0,0.00013698,2]
[353115782,1739566248706,-500.0,0.00013698,2]
[353115783,1739566248716,-500.0,0.00013698,2]
[353115784,1739566248726,-500.0,0.00013698,2]
[353115785,1739566248737,-500.0,0.00013698,2]
[353115786,1739566248748,-500.0,0.00013698,2]
[353115787,1739566248757,-500.0,0.00013698,2]
[353115788,1739566248768,-500.0,0.00013698,2]
[353115789,1739566248779,-500.0,0.00013698,2]
[353115790,1739566248790,-410.28521457,0.00013698,2]
[353115791,1739566248800,-1331.32,0.00013698,2]
[353115792,1739566248810,-500.0,0.00013698,2]
[353115793,1739566248820,-564.14,0.00013698,2]
[353115794,1739566248830,-558.34,0.00013698,2]
[353115795,1739566248840,-500.0,0.00013698,2]
[353115796,1739566248850,-500.0,0.00013698,2]
[353115797,1739566248860,-500.0,0.00013698,2]
[353115798,1739566248871,-501.16000852,0.00013698,2]
[353115799,1739566248880,-500.0,0.00013698,2]
[353115800,1739566248890,-500.0,0.00013698,2]
[353115801,1739566248901,-500.0,0.00013698,2]
[353115802,1739566248911,-500.0,0.00013698,2]
[353115803,1739566248921,-500.0,0.00013698,2]
[353115804,1739566248931,-513.62,0.00013698,2]
[353115805,1739566248941,-581.37191801,0.00013698,2]
[353115806,1739566248951,-500.0,0.00013698,2]
[353115807,1739566248961,-500.0,0.00013698,2]
[353115808,1739566248971,-500.0,0.00013698,2]
[353115809,1739566248982,-580.32462573,0.00013698,2]
[353115810,1739566248992,-500.0,0.00013698,2]
[353115811,1739566249002,-501.13646855,0.00013698,2]
[353115812,1739566249011,-500.0,0.00013698,2]
[353115813,1739566249021,-678.74,0.00013698,2]
[353115814,1739566249032,-572.70603126,0.00013698,2]
[353115815,1739566249043,-500.0,0.00013698,2]
[353115816,1739566249053,-500.0,0.00013698,2]
[353115817,1739566249063,-500.0,0.00013698,2]
[353115818,1739566249074,-583.73,0.00013698,2]
[353115819,1739566249083,-500.0,0.00013698,2]
[353115820,1739566249093,-500.0,0.00013698,2]
[353115821,1739566249107,-500.0,0.00013698,2]
[353115822,1739566249117,-1406.71,0.00013698,2]
[353115823,1739566249127,-500.0,0.00013698,2]
[353115824,1739566249137,-500.0,0.00013698,2]
[353115825,1739566249146,-349.99898963,0.00013698,2]
[353115826,1739566249155,-500.0,0.00013698,2]
[353115827,1739566249165,-500.0,0.00013698,2]
[353115828,1739566249174,-500.0,0.00013698,2]
[353115829,1739566249189,-964.12,0.00013698,2]
[353115830,1739566249199,-501.4581613,0.00013698,2]
[353115831,1739566249209,-793.22,0.00013698,2]
[353115832,1739566249218,-500.0,0.00013698,2]
[353115833,1739566249230,-500.0,0.00013698,2]
[353115834,1739566249239,-500.0,0.00013698,2]